fUST/lending_fUST_20240729
["ID","MTS","AMOUNT","RATE_DAILY","PERIOD"]
[333499442,1722211832659,-190.762176,0.00014273,2]
[333499443,1722211832671,-573.747824,0.0001469,2]
[333499444,1722211832719,-29426.252176,0.0001469,2]
[333499445,1722211832730,-394.80269958,0.0001469,5]
[333499446,1722211832740,-188.76127757,0.0001469,2]
[333499447,1722211832749,-231.79343084,0.0001469,2]
[333499448,1722211832758,-154.92706435,0.0001469,2]
[333499449,1722211832768,-2106.73594999,0.0001469,2]
[333499450,1722211832778,-4709.09482938,0.0001469,2]
[333499451,1722211832788,-1609.61338674,0.0001469,2]
[333499452,1722211832798,-3782.30442803,0.0001469,2]
[333499453,1722211832808,-412.4521228,0.00014697,2]
[333499454,1722211832817,-150.112233,0.00015,2]
[333499455,1722211832826,-710.16234745,0.00015597,2]
[333499456,1722211832835,-600.58755531,0.00015608,2]
[333499457,1722211832845,-500.0,0.00015696,2]
[333499458,1722211832855,-500.0,0.00015696,2]
[333499459,1722211832865,-500.0,0.00015696,2]
[333499460,1722211832874,-500.0,0.00015696,2]
[333499461,1722211832884,-617.48479522,0.00015696,2]
[333499462,1722211832894,-500.0,0.00015696,2]
[333499463,1722211832904,-500.0,0.00015696,2]
[333499464,1722211832914,-531.55220661,0.00015696,2]
[333499465,1722211832927,-507.61720522,0.00015697,2]
[333499466,1722211832936,-500.0,0.00015697,2]
[333499467,1722211832946,-505.44084547,0.00015697,2]
[333499468,1722211832955,-500.0,0.00015697,2]
[333499469,1722211832964,-500.0,0.00015697,2]
[333499470,1722211832974,-500.0,0.00015697,2]
[333499471,1722211832984,-500.0,0.00015697,2]
[333499472,1722211832993,-500.0,0.00015697,2]
[333499473,1722211833003,-500.0,0.00015697,2]
[333499474,1722211833012,-500.0,0.00015697,2]
[333499475,1722211833021,-500.0,0.00015697,2]
[333499476,1722211833030,-500.0,0.00015697,2]
[333499477,1722211833040,-350.31172901,0.00015697,2]
[333499478,1722211833049,-500.0,0.00015697,2]
[333499479,1722211833059,-500.0,0.00015697,2]
[333499480,1722211833069,-500.0,0.00015697,2]
[333499481,1722211833079,-500.0,0.00015697,2]
[333499482,1722211833088,-500.0,0.00015697,2]
[333499483,1722211833098,-500.0,0.00015697,2]
[333499484,1722211833107,-471.58784561,0.00015697,2]
[333499485,1722211833117,-500.0,0.00015697,2]
[333499486,1722211833126,-500.0,0.00015697,2]
[333499487,1722211833136,-560.72,0.00015697,2]
[333499488,1722211833146,-500.0,0.00015697,2]
[333499489,1722211833155,-500.0,0.00015697,2]
[333499490,1722211833165,-500.0,0.00015697,2]
[333499491,1722211833179,-500.0,0.00015697,2]
[333499492,1722211833189,-500.0,0.00015697,2]
[333499493,1722211833200,-500.0,0.00015697,2]
[333499494,1722211833210,-500.34912662,0.00015697,2]
[333499495,1722211833222,-500.0,0.00015697,2]
[333499496,1722211833232,-500.0,0.00015697,2]
[333499497,1722211833242,-500.0,0.00015697,2]
[333499498,1722211833252,-500.0,0.00015697,2]
[333499499,1722211833263,-500.0,0.00015697,2]
[333499500,1722211833272,-501.26766074,0.00015697,2]
[333499501,1722211833285,-500.0,0.00015697,2]
[333499502,1722211833296,-500.0,0.00015697,2]
[333499503,1722211833306,-547.32,0.00015697,2]
[333499504,1722211833317,-151.0,0.00015697,2]
[333499505,1722211833328,-500.0,0.00015697,2]
[333499506,1722211833338,-500.0,0.00015697,2]
[333499507,1722211833348,-500.0,0.00015697,2]
[333499508,1722211833358,-500.0,0.00015697,2]
[333499509,1722211833369,-364.15548643,0.00015697,2]
[333499510,1722211833379,-500.0,0.00015697,2]
[333499511,1722211833389,-500.88649305,0.00015697,2]
[333499512,1722211833399,-500.0,0.00015697,2]
[333499513,1722211833408,-584.62,0.00015697,2]
[333499514,1722211833419,-500.0,0.00015697,2]
[333499515,1722211833433,-504.76180352,0.00015697,2]
[333499516,1722211833443,-500.0,0.00015697,2]
[333499517,1722211833454,-500.0,0.00015697,2]
[333499518,1722211833464,-208.99230101,0.00015697,2]
[333499519,1722211833474,-500.0,0.00015697,2]
[333499520,1722211833484,-500.0,0.00015697,2]
[333499521,1722211833494,-500.0,0.00015697,2]
[333499522,1722211833504,-500.0,0.00015697,2]
[333499523,1722211833514,-910.05,0.00015697,2]
[333499524,1722211833523,-500.0,0.00015697,2]
[333499525,1722211833534,-500.0,0.00015697,2]
[333499526,1722211833543,-500.0,0.00015697,2]
[333499527,1722211833553,-500.0,0.00015697,2]
[333499528,1722211833563,-500.0,0.00015697,2]
[333499529,1722211833572,-500.0,0.00015697,2]
[333499530,1722211833582,-500.0,0.00015697,2]
[333499531,1722211833592,-500.0,0.00015697,2]
[333499532,1722211833601,-500.0,0.00015697,2]
[333499533,1722211833610,-500.0,0.00015697,2]
[333499534,1722211833619,-500.0,0.00015697,2]
[333499535,1722211833629,-500.0,0.00015697,2]
[333499536,1722211833638,-500.0,0.00015697,2]
[333499537,1722211833647,-195.91279751,0.00015697,2]
[333499538,1722211833656,-500.0,0.00015697,2]
[333499539,1722211833666,-508.12849146,0.00015697,2]
[333499540,1722211833679,-500.0,0.00015697,2]
[333499541,1722211833689,-500.0,0.00015697,2]
[333499542,1722211833699,-500.0,0.00015697,2]
[333499543,1722211833708,-500.0,0.00015697,2]
[333499544,1722211833717,-500.0,0.00015697,2]
[333499545,1722211833727,-500.0,0.00015697,2]
[333499546,1722211833736,-500.0,0.00015697,2]
[333499547,1722211833746,-500.0,0.00015697,2]
[333499548,1722211833755,-500.0,0.00015697,2]
[333499549,1722211833764,-532.70786361,0.00015697,2]
[333499550,1722211833774,-500.0,0.00015697,2]
[333499551,1722211833783,-500.0,0.00015697,2]
[333499552,1722211833792,-500.0,0.00015697,2]
[333499553,1722211833802,-198.751779,0.00015697,2]
[333499554,1722211833811,-500.0,0.00015697,2]
[333499555,1722211833820,-502.43460247,0.00015697,2]
[333499556,1722211833830,-500.0,0.00015697,2]
[333499557,1722211833928,-500.0,0.00015697,2]
[333499558,1722211833938,-500.0,0.00015697,2]
[333499559,1722211833948,-500.0,0.00015697,2]
[333499560,1722211833958,-500.84008749,0.00015697,2]
[333499561,1722211833967,-500.0,0.00015697,2]
[333499562,1722211833976,-500.0,0.00015697,2]
[333499563,1722211833986,-500.0,0.00015697,2]
[333499564,1722211833995,-384.65,0.00015697,2]
[333499565,1722211834005,-502.75779152,0.00015697,2]
[333499566,1722211834015,-500.0,0.00015697,2]
[333499567,1722211834025,-743.0,0.00015697,2]
[333499568,1722211834034,-500.0,0.00015697,2]
[333499569,1722211834044,-500.0,0.00015697,2]
[333499570,1722211834054,-500.0,0.00015697,2]
[333499571,1722211834064,-500.0,0.00015697,2]
[333499572,1722211834073,-500.0,0.00015697,2]
[333499573,1722211834083,-500.0,0.00015697,2]
[333499574,1722211834093,-506.41407044,0.00015697,2]
[333499575,1722211834102,-500.0,0.00015697,2]
[333499576,1722211834111,-500.0,0.00015697,2]
[333499577,1722211834121,-561.66723649,0.00015697,2]
[333499578,1722211834130,-500.0,0.00015697,2]
[333499579,1722211834140,-616.46,0.00015697,2]
[333499580,1722211834150,-500.0,0.00015697,2]
[333499581,1722211834159,-500.0,0.00015697,2]
[333499582,1722211834169,-500.0,0.00015697,2]
[333499583,1722211834182,-500.0,0.00015697,2]
[333499584,1722211834192,-500.0,0.00015697,2]
[333499585,1722211834202,-500.0,0.00015697,2]
[333499586,1722211834212,-1593.11,0.00015697,2]
[333499587,1722211834222,-1015.39,0.00015697,2]
[333499588,1722211834232,-500.0,0.00015697,2]
[333499589,1722211834242,-500.0,0.00015697,2]
[333499590,1722211834253,-2464.56407958,0.00015698,2]
[333499608,1722211838474,-225.72802296,0.00014689,2]
[333499609,1722211838485,-312.12089686,0.00014689,2]
[333499610,1722211838497,-205.12403253,0.00014689,2]
[333499611,1722211838508,-488.69311268,0.00014689,2]
[333499612,1722211838519,-367.53930495,0.00015535,2]
[333499613,1722211838533,-321.81463018,0.00015697,2]
[333499614,1722211838548,-178.18536982,0.00015697,2]
[333499615,1722211838561,-163.74199888,0.00015697,2]
[333499616,1722211838574,-101.27795012,0.00015697,2]
[333499617,1722211838586,-265.019949,0.00015697,2]
[333499618,1722211838597,-265.019949,0.00015697,2]
[333499619,1722211838610,-265.019949,0.00015697,2]
[333499620,1722211838622,-265.019949,0.00015697,2]
[333499621,1722211838634,-265.019949,0.00015697,2]
[333499622,1722211838645,-111966.58959465,0.00015698,2]
[333499623,1722211838660,-80644.24319563,0.00015698,2]
[333499624,1722211838678,-319.2398709,0.00015698,2]
[333499625,1722211838693,-698.41200574,0.00015698,2]
[333499642,1722211840770,-33575.0797765,0.00015698,2]
[333499643,1722211840781,-151.0,0.00015698,2]
[333499644,1722211840792,-265.019949,0.00015698,2]
[333499645,1722211840804,-265.019949,0.00015699,2]
[333499646,1722211840815,-114834.064262,0.00015699,2]
[333499647,1722211840826,-500.0,0.00015707,2]
[333499648,1722211840838,-500.0,0.00015707,2]
[333499649,1722211840848,-258.76299208,0.00015707,2]
[333499650,1722211840858,-500.0,0.00015707,2]
[333499651,1722211840867,-5660.63152344,0.00015708,5]
[333499652,1722211840879,-13430.10516515,0.00015708,2]
[333499653,1722211840891,-3821.00556139,0.00015708,2]
[333499654,1722211840904,-2122.92844676,0.00015708,2]
[333499655,1722211840920,-107.53837942,0.00015708,2]
[333499656,1722211840933,-1362.76164287,0.00015708,2]
[333499657,1722211840950,-6349.01794024,0.00015708,2]
[333499658,1722211840960,-3034.14055774,0.00015708,2]
[333499675,1722211843256,-151.0,0.00015697,2]
[333499676,1722211843268,-151.0,0.00015697,2]
[333499677,1722211843280,-151.0,0.00015697,2]
[333499678,1722211843295,-3600.19826832,0.00015708,2]
[333499679,1722211843309,-6799.14824752,0.00015708,2]
[333499680,1722211843319,-1708.57156863,0.00015708,2]
[333499681,1722211843332,-8022.74412438,0.00015708,2]
[333499682,1722211843343,-4370.97915131,0.00015708,3]
[333499683,1722211843470,-2759.52799143,0.00015708,2]
[333499684,1722211843484,-4850.14776155,0.00015708,2]
[333499685,1722211843498,-1073.99821899,0.00015708,2]
[333499686,1722211843507,-375.07735546,0.00015708,2]
[333499718,1722211846403,-265.019949,0.00015697,2]
[333499719,1722211846412,-265.019949,0.00015697,2]
[333499720,1722211846423,-265.019949,0.00015697,2]
[333499721,1722211846433,-500.0,0.00015697,2]
[333499723,1722211846443,-265.019949,0.00015697,2]
[333499724,1722211846453,-265.019949,0.00015697,2]
[333499726,1722211846463,-265.019949,0.00015697,2]
[333499727,1722211846474,-3008.09105713,0.00015708,2]
[333499728,1722211846483,-4076.37747964,0.00015708,2]
[333499729,1722211846493,-1500.0,0.00015708,2]
[333499730,1722211846503,-8135.47397737,0.00015708,2]
[333499731,1722211846513,-2653.35061984,0.00015708,2]
[333499732,1722211846524,-4104.28814158,0.00015708,2]
[333499733,1722211846533,-2699.39459203,0.00015708,2]
[333499734,1722211846543,-944.80634654,0.00015708,2]
[333499735,1722211846552,-81238.54246512,0.00015708,2]
[333499736,1722211846561,-288.10500458,0.00015708,2]
[333499737,1722211846571,-265.019949,0.00015708,2]
[333499738,1722211846580,-265.019949,0.00015708,2]
[333499739,1722211846590,-39830.35276302,0.00015709,2]
[333499740,1722211846600,-67180.26869688,0.00015709,2]
[333499741,1722211846609,-53079.75066289,0.00015709,2]
[333499742,1722211846619,-200.0,0.00015809,2]
[333499743,1722211846628,-621.65,0.00015971,2]
[333499744,1722211846638,-599.08,0.00015971,2]
[333499745,1722211846647,-500.0,0.00015971,2]
[333499746,1722211846658,-910.05,0.00015971,2]
[333499747,1722211846668,-500.0,0.00015971,2]
[333499748,1722211846677,-500.0,0.00015971,2]
[333499749,1722211846689,-500.0,0.00015971,2]
[333499750,1722211846698,-500.0,0.00015971,2]
[333499751,1722211846707,-344.7,0.00015971,2]
[333499752,1722211846716,-252.67,0.00015971,2]
[333499753,1722211846726,-500.0,0.00015971,2]
[333499754,1722211846735,-743.0,0.00015971,2]
[333499755,1722211846744,-616.46,0.00015971,2]
[333499756,1722211846754,-500.0,0.00015971,2]
[333499757,1722211846764,-1593.11,0.00015971,2]
[333499758,1722211846773,-1015.39,0.00015971,2]
[333499759,1722211846782,-500.0,0.00015971,2]
[333499760,1722211846792,-500.0,0.00015981,2]
[333499761,1722211846802,-32114.59303306,0.00016038,2]
[333499762,1722211846812,-569.81437004,0.00016038,2]
[333499763,1722211846824,-500.0,0.00016245,2]
[333499764,1722211846835,-910.05,0.00016245,2]
[333499765,1722211846847,-500.0,0.00016245,2]
[333499766,1722211846858,-500.0,0.00016245,2]
[333499767,1722211846868,-500.0,0.00016245,2]
[333499768,1722211846877,-248.28,0.00016245,2]
[333499769,1722211846886,-500.0,0.00016245,2]
[333499770,1722211846896,-743.0,0.00016245,2]
[333499771,1722211846905,-616.46,0.00016245,2]
[333499772,1722211846914,-500.0,0.00016245,2]
[333499773,1722211846924,-1593.11,0.00016245,2]
[333499774,1722211846935,-1015.39,0.00016245,2]
[333499775,1722211846944,-340.32,0.00016245,2]
[333499776,1722211846953,-199.94,0.00016255,2]
[333499777,1722211846962,-33877.85972499,0.00016347,2]
[333499778,1722211846971,-531.91397685,0.000165,2]
[333499779,1722211846980,-202.06,0.00016519,2]
[333499780,1722211846989,-910.05,0.00016519,2]
[333499781,1722211846998,-500.0,0.00016519,2]
[333499782,1722211847009,-500.0,0.00016519,2]
[333499783,1722211847020,-500.0,0.00016519,2]
[333499784,1722211847031,-500.0,0.00016519,2]
[333499785,1722211847044,-743.0,0.00016519,2]
[333499786,1722211847053,-616.46,0.00016519,2]
[333499787,1722211847063,-500.0,0.00016519,2]
[333499788,1722211847075,-1593.11,0.00016519,2]
[333499789,1722211847084,-1015.39,0.00016519,2]
[333499790,1722211847093,-910.05,0.00016793,2]
[333499791,1722211847103,-500.0,0.00016793,2]
[333499792,1722211847112,-500.0,0.00016793,2]
[333499793,1722211847122,-500.0,0.00016793,2]
[333499794,1722211847131,-500.0,0.00016793,2]
[333499795,1722211847140,-743.0,0.00016793,2]
[333499796,1722211847150,-616.46,0.00016793,2]
[333499797,1722211847159,-500.0,0.00016793,2]
[333499798,1722211847168,-1593.11,0.00016793,2]
[333499799,1722211847178,-1015.39,0.00016793,2]
[333499800,1722211847190,-154.65203293,0.00017,2]
[333499801,1722211847200,-1000.0,0.00017,17]
[333499802,1722211847209,-3200.0,0.00017054,2]
[333499803,1722211847219,-600.58755526,0.00017058,2]
[333499804,1722211847228,-910.05,0.00017067,2]
[333499805,1722211847237,-500.0,0.00017067,2]
[333499806,1722211847247,-569.10895058,0.00017067,2]
[333499807,1722211847256,-500.0,0.00017067,2]
[333499808,1722211847266,-500.0,0.00017067,2]
[333499809,1722211847276,-743.0,0.00017067,2]
[333499810,1722211847289,-616.46,0.00017067,2]
[333499811,1722211847298,-500.0,0.00017067,2]
[333499812,1722211847308,-1593.11,0.00017067,2]
[333499813,1722211847318,-1015.39,0.00017067,2]
[333499814,1722211847328,-324.8096642,0.00017315,2]
[333499815,1722211847337,-294.0479944,0.00017315,2]
[333499816,1722211847346,-294.0479944,0.00017315,2]
[333499817,1722211847356,-587.9154767,0.00017315,2]
[333499818,1722211847370,-910.05,0.00017341,2]
[333499819,1722211847380,-500.0,0.00017341,2]
[333499820,1722211847390,-500.0,0.00017341,2]
[333499821,1722211847399,-416.31292583,0.00017341,2]
[333499822,1722211847409,-743.0,0.00017341,2]
[333499823,1722211847419,-616.46,0.00017341,2]
[333499824,1722211847428,-500.0,0.00017341,2]
[333499825,1722211847440,-1593.11,0.00017341,2]
[333499826,1722211847450,-1015.39,0.00017341,2]
[333499827,1722211847460,-154.68290005,0.00017379,2]
[333499828,1722211847470,-166.666666,0.00017379,2]
[333499829,1722211847479,-710.16234744,0.00017463,2]
[333499830,1722211847489,-910.05,0.00017615,2]
[333499831,1722211847498,-500.0,0.00017615,2]
[333499832,1722211847507,-500.0,0.00017615,2]
[333499833,1722211847518,-743.0,0.00017615,2]
[333499834,1722211847528,-616.46,0.00017615,2]
[333499835,1722211847538,-500.0,0.00017615,2]
[333499836,1722211847548,-1593.11,0.00017615,2]
[333499837,1722211847558,-1015.39,0.00017615,2]
[333499838,1722211847568,-154.95256393,0.00017806,2]
[333499839,1722211847578,-198.6237069,0.00017806,2]
[333499840,1722211847588,-2797.74460982,0.00017806,2]
[333499841,1722211847598,-904.05184518,0.00017806,2]
[333499842,1722211847608,-150.5,0.00017871,7]
[333499843,1722211847617,-910.05,0.00017889,2]
[333499844,1722211847627,-500.0,0.00017889,2]
[333499845,1722211847637,-500.0,0.00017889,2]
[333499846,1722211847647,-743.0,0.00017889,2]
[333499847,1722211847656,-616.46,0.00017889,2]
[333499848,1722211847666,-500.0,0.00017889,2]
[333499849,1722211847676,-1593.11,0.00017889,2]
[333499850,1722211847687,-1015.39,0.00017889,2]
[333499851,1722211847696,-154.65203293,0.00018,2]
[333499852,1722211847706,-154.94,0.000181,31]
[333499853,1722211847715,-154.94,0.000181,31]
[333499854,1722211847724,-154.94,0.000181,31]
[333499855,1722211847733,-154.94,0.000181,31]
[333499856,1722211847742,-910.05,0.00018163,2]
[333499857,1722211847751,-500.0,0.00018163,2]
[333499858,1722211847760,-500.0,0.00018163,2]
[333499859,1722211847770,-743.0,0.00018163,2]
[333499860,1722211847779,-616.46,0.00018163,2]
[333499861,1722211847788,-500.0,0.00018163,2]
[333499862,1722211847798,-1593.11,0.00018163,2]
[333499863,1722211847808,-1015.39,0.00018163,2]
[333499864,1722211847817,-951.2964008,0.00018356,2]
[333499865,1722211847827,-910.05,0.00018437,2]
[333499866,1722211847836,-500.0,0.00018437,2]
[333499867,1722211847845,-500.0,0.00018437,2]
[333499868,1722211847854,-743.0,0.00018437,2]
[333499869,1722211847863,-616.46,0.00018437,2]
[333499870,1722211847872,-449.4109193,0.00018437,2]
[333499871,1722211847882,-1593.11,0.00018437,2]
[333499872,1722211847891,-1015.39,0.00018437,2]
[333499873,1722211847900,-200.08019761,0.00018489,2]
[333499874,1722211847910,-600.58755526,0.00018508,2]
[333499875,1722211847919,-910.05,0.00018711,2]
[333499876,1722211847928,-500.0,0.00018711,2]
[333499877,1722211847942,-500.0,0.00018711,2]
[333499878,1722211847951,-743.0,0.00018711,2]
[333499879,1722211847961,-616.46,0.00018711,2]
[333499880,1722211847971,-1593.11,0.00018711,2]
[333499881,1722211847981,-1015.39,0.00018711,2]
[333499882,1722211847990,-910.05,0.00018985,2]
[333499883,1722211847999,-208.19,0.00018985,2]
[333499884,1722211848009,-213.82,0.00018985,2]
[333499885,1722211848018,-743.0,0.00018985,2]
[333499886,1722211848028,-616.46,0.00018985,2]
[333499887,1722211848037,-1593.11,0.00018985,2]
[333499888,1722211848047,-1015.39,0.00018985,2]
[333499889,1722211848056,-1000.0,0.00019,19]
[333499890,1722211848066,-250.0,0.00019041,2]
[333499891,1722211848075,-309.286179,0.00019178,2]
[333499892,1722211848085,-910.05,0.00019259,2]
[333499893,1722211848094,-743.0,0.00019259,2]
[333499894,1722211848104,-616.46,0.00019259,2]
[333499895,1722211848113,-1593.11,0.00019259,2]
[333499896,1722211848123,-1015.39,0.00019259,2]
[333499897,1722211848132,-710.16234744,0.00019329,2]
[333499898,1722211848142,-910.05,0.00019533,2]
[333499899,1722211848151,-743.0,0.00019533,2]
[333499900,1722211848160,-616.46,0.00019533,2]
[333499901,1722211848171,-1593.11,0.00019533,2]
[333499902,1722211848181,-1015.39,0.00019533,2]
[333499903,1722211848191,-910.05,0.00019807,2]
[333499904,1722211848201,-743.0,0.00019807,2]
[333499905,1722211848210,-616.46,0.00019807,2]
[333499906,1722211848220,-1593.11,0.00019807,2]
[333499907,1722211848230,-1015.39,0.00019807,2]
[333499908,1722211848239,-600.58755526,0.00019958,2]
[333499909,1722211848248,-564.38943561,0.0002,2]
[333499910,1722211848258,-171.24551146,0.0002,2]
[333499911,1722211848267,-6889.1070761,0.0002,2]
[333499912,1722211848276,-684.45061372,0.0002,2]
[333499913,1722211848288,-300.0,0.0002,2]
[333499914,1722211848297,-435.0,0.0002,2]
[333499915,1722211848310,-476.45339051,0.0002,2]
[333499916,1722211848320,-8023.88640926,0.0002,2]
[333499917,1722211848330,-1948.74104367,0.0002,2]
[333499918,1722211848339,-154.65203293,0.0002,2]
[333499919,1722211848348,-215.1258063,0.0002,2]
[333499920,1722211848359,-154.65203293,0.0002,15]
[333499921,1722211848370,-988.16240789,0.0002,2]
[333499922,1722211848380,-154.63660398,0.0002,2]
[333499923,1722211848389,-518.07029447,0.0002,2]
[333499924,1722211848399,-192.40376189,0.0002,2]
[333499925,1722211848409,-399.73349992,0.0002,2]
[333499926,1722211848418,-16112.1587645,0.0002,5]
[333499927,1722211848428,-302.30477158,0.0002,2]
[333499928,1722211848439,-171.87651552,0.0002,2]
[333499929,1722211848449,-302.30477158,0.0002,2]
[333499930,1722211848458,-1000.0,0.0002,2]
[333499931,1722211848467,-910.05,0.00020081,2]
[333499932,1722211848477,-743.0,0.00020081,2]
[333499933,1722211848486,-616.46,0.00020081,2]
[333499934,1722211848496,-1593.11,0.00020081,2]
[333499935,1722211848505,-1015.39,0.00020081,2]
[333499936,1722211848514,-302.30477158,0.000202,2]
[333499937,1722211848524,-302.30477158,0.000202,2]
[333499938,1722211848533,-910.05,0.00020355,2]
[333499939,1722211848542,-743.0,0.00020355,2]
[333499940,1722211848551,-616.46,0.00020355,2]
[333499941,1722211848561,-1593.11,0.00020355,2]
[333499942,1722211848571,-1015.39,0.00020355,2]
[333499943,1722211848580,-302.30477158,0.000204,2]
[333499944,1722211848589,-302.30477158,0.000204,2]
[333499945,1722211848598,-302.30477158,0.000206,2]
[333499946,1722211848608,-302.30477158,0.000206,2]
[333499947,1722211848617,-910.05,0.00020629,2]
[333499948,1722211848627,-743.0,0.00020629,2]
[333499949,1722211848636,-616.46,0.00020629,2]
[333499950,1722211848645,-1593.11,0.00020629,2]
[333499951,1722211848655,-1015.39,0.00020629,2]
[333499952,1722211848664,-360.507294,0.00020707,2]
[333499953,1722211848674,-302.30477158,0.000208,2]
[333499954,1722211848687,-302.30477158,0.000208,2]
[333499955,1722211848697,-910.05,0.00020903,2]
[333499956,1722211848707,-743.0,0.00020903,2]
[333499957,1722211848717,-616.46,0.00020903,2]
[333499958,1722211848727,-1593.11,0.00020903,2]
[333499959,1722211848740,-1015.39,0.00020903,2]
[333499960,1722211848750,-1000.0,0.00021,21]
[333499961,1722211848760,-150.0,0.00021,2]
[333499962,1722211848770,-453.45715737,0.00021,4]
[333499963,1722211848779,-453.45715737,0.00021,4]
[333499964,1722211848789,-18040.59027099,0.00021037,30]
[333499965,1722211848799,-910.05,0.00021176,2]
[333499966,1722211848808,-743.0,0.00021176,2]
[333499967,1722211848819,-616.46,0.00021176,2]
[333499968,1722211848830,-1593.11,0.00021176,2]
[333499969,1722211848840,-1015.39,0.00021176,2]
[333499970,1722211848849,-710.16234744,0.00021195,2]
[333499971,1722211848859,-453.45715737,0.000212,4]
[333499972,1722211848868,-453.45715737,0.000212,4]
[333499973,1722211848878,-453.45715737,0.000214,4]
[333499974,1722211848887,-453.45715737,0.000214,4]
[333499975,1722211848897,-600.58755526,0.00021408,2]
[333499976,1722211848906,-910.05,0.0002145,2]
[333499977,1722211849001,-743.0,0.0002145,2]
[333499978,1722211849011,-616.46,0.0002145,2]
[333499979,1722211849021,-1593.11,0.0002145,2]
[333499980,1722211849031,-1015.39,0.0002145,2]
[333499981,1722211849041,-453.45715737,0.000216,4]
[333499982,1722211849050,-453.45715737,0.000216,4]
[333499983,1722211849059,-910.05,0.00021724,2]
[333499984,1722211849069,-743.0,0.00021724,2]
[333499985,1722211849078,-616.46,0.00021724,2]
[333499986,1722211849088,-1593.11,0.00021724,2]
[333499987,1722211849097,-1015.39,0.00021724,2]
[333499988,1722211849108,-453.45715737,0.000218,4]
[333499989,1722211849118,-453.45715737,0.000218,4]
[333499990,1722211849128,-159.334613,0.00021843,2]
[333499991,1722211849138,-910.07888032,0.00021998,2]
[333499992,1722211849147,-743.12664229,0.00021998,2]
[333499993,1722211849156,-616.63437856,0.00021998,2]
[333499994,1722211849167,-1593.29185388,0.00021998,2]
[333499995,1722211849176,-1015.40545943,0.00021998,2]
[333499996,1722211849189,-308.11413718,0.00022,2]
[333499997,1722211849199,-164.41356639,0.00022077,2]
[333499998,1722211849210,-1691.64346427,0.0002217,2]
[333499999,1722211849220,-164.41356639,0.00022352,2]
[333500000,1722211849230,-164.41356639,0.00022716,2]
[333500001,1722211849240,-164.41356639,0.00022837,2]
[333500002,1722211849249,-600.58755526,0.00022858,2]
[333500003,1722211849259,-164.41356639,0.00022996,2]
[333500004,1722211849269,-1000.0,0.00023,23]
[333500005,1722211849279,-164.41356639,0.00023154,2]
[333500006,1722211849293,-153.0,0.00023205,2]
[333500007,1722211849304,-164.41356639,0.00023312,2]
[333500008,1722211849314,-172.685116,0.00023836,2]
[333500009,1722211849325,-268.397002,0.00023836,2]
[333500010,1722211849336,-172.685116,0.00023836,2]
[333500011,1722211849346,-157.228433,0.00023836,2]
[333500012,1722211849356,-186.300133,0.00023836,2]
[333500013,1722211849366,-150.366448,0.00023836,2]
[333500014,1722211849377,-158.297371,0.00023836,2]
[333500015,1722211849387,-157.228433,0.00023836,2]
[333500016,1722211849397,-223.82536,0.00023836,2]
[333500017,1722211849406,-181.477014,0.00023836,2]
[333500018,1722211849416,-4341.93675127,0.00024,30]
[333500019,1722211849425,-500.0,0.00024,120]
[333500020,1722211849436,-316.05820517,0.00024,2]
[333500021,1722211849446,-268.397002,0.00024133,2]
[333500022,1722211849455,-150.366448,0.00024133,2]
[333500023,1722211849464,-172.685116,0.00024233,2]